[Event "4NCL 2nd Div 2023-24"]
[Site "Daventry"]
[Date "2024.05.04"]
[Round "9.22"]
[White "Bucher, Grant W"]
[Black "Roe, Simon J"]
[Result "1/2-1/2"]
[ECO "B11"]
[WhiteElo "2049"]
[BlackElo "2177"]
[Annotator "ChessBase"]
[PlyCount "246"]
[EventDate "2023.11.11"]
[EventType "team-tourn"]
[EventCountry "ENG"]
[SourceTitle "playchess.com"]
[Source "ChessBase"]
[SourceQuality "1"]
[TimeControl "40/6000+30:3000+30"]

1. e4 {[%emt 0:00:02]} c6 {[%emt 0:00:06]} 2. Nf3 {[%emt 0:00:05]} d5 {[%emt 0:00:09]} 3. Nc3 {[%emt 0:00:06]} Bg4 {[%emt 0:00:12]} 4. h3 {[%emt 0:00:23]} Bxf3 {[%emt 0:00:07]} 5. Qxf3 {[%emt 0:00:07]} e6 {[%emt 0:00:09]} 6. Be2 {[%emt 0:01:55]} Bc5 {[%emt 0:04:02]} 7. O-O {[%emt 0:03:22]} Ne7 {[%emt 0:02:05]} 8. d3 {[%emt 0:13:50]} Nd7 {[%emt 0:03:37]} 9. Qg3 {[%emt 0:06:57]} O-O {[%emt 0:01:22]} 10. Kh1 {[%emt 0:02:15]} Ng6 {[%emt 0:05:21]} 11. f4 {[%emt 0:05:52]} f5 {[%emt 0:00:52]} 12. Bh5 {[%emt 0:14:41]} Ne7 {[%emt 0:05:18]} 13. Bf3 {[%emt 0:04:39]} Kh8 {[%emt 0:06:48]} 14. Qe1 {[%emt 0:08:42]} Bd6 {[%emt 0:07:24]} 15. e5 {[%emt 0:05:11]} Bc7 {[%emt 0:01:35]} 16. Ne2 {[%emt 0:03:16]} Bb6 {[%emt 0:05:40]} 17. d4 {[%emt 0:03:49]} c5 {[%emt 0:02:59]} 18. Be3 {[%emt 0:00:54]} Rc8 {[%emt 0:02:39]} 19. dxc5 {[%emt 0:03:23]} Nxc5 {[%emt 0:03:08]} 20. Nd4 {[%emt 0:01:29]} Qd7 {[%emt 0:01:22]} 21. Rd1 {[%emt 0:03:09]} Ne4 {[%emt 0:06:16]} 22. c3 {[%emt 0:01:26]} Bxd4 {[%emt 0:08:53]} 23. Bxd4 {[%emt 0:00:39]} Qa4 {[%emt 0:00:35]} 24. a3 {[%emt 0:08:19]} b6 {[%emt 0:03:41]} 25. Kh2 {[%emt 0:00:45]} Qb3 {[%emt 0:07:55]} 26. Rb1 {[%emt 0:02:02]} Qb5 {[%emt 0:05:29]} 27. Be2 {[%emt 0:03:19]} Qe8 {[%emt 0:00:38]} 28. Ba6 {[%emt 0:01:04]} Rc7 {[%emt 0:00:16]} 29. Qe2 {[%emt 0:00:21]} Qg6 {[%emt 0:02:11]} 30. Rf3 {[%emt 0:01:19]} Qh6 {[%emt 0:00:52]} 31. Be3 {[%emt 0:02:12]} Nc6 {[%emt 0:03:16]} 32. Rd1 {[%emt 0:03:35]} Na5 {[%emt 0:01:03]} 33. Rd4 {[%emt 0:01:18]} Nb3 {[%emt 0:03:04]} 34. Rd1 {[%emt 0:01:29]} Nbc5 {[%emt 0:01:30]} 35. Bb5 {[%emt 0:00:43]} Ra8 {[%emt 0:04:59]} 36. Qe1 {[%emt 0:01:45]} a6 {[%emt 0:01:25]} 37. Bf1 {[%emt 0:00:12]} Na4 {[%emt 0:01:09]} 38. Bc1 {[%emt 0:00:51]} b5 {[%emt 0:00:32]} 39. Rd4 {[%emt 0:01:23]} Rac8 {[%emt 0:00:56]} 40. Be2 {[%emt 0:00:50]} Nb6 {[%emt 0:05:25]} 41. Bd3 {[%emt 0:04:45]} Qh5 {[%emt 0:04:59]} 42. Rf1 {[%emt 0:04:43]} Nc5 {[%emt 0:06:55]} 43. Be2 {[%emt 0:02:27]} Qh6 {[%emt 0:01:32]} 44. Qd1 {[%emt 0:00:47]} Ne4 {[%emt 0:01:14]} 45. Bd3 {[%emt 0:01:02]} Qh4 {[%emt 0:02:17]} 46. Qf3 {[%emt 0:09:30]} Nc4 {[%emt 0:03:38]} 47. Bxe4 {[%emt 0:09:22]} fxe4 {[%emt 0:04:06]} 48. Qg4 {[%emt 0:02:54]} Qe7 {[%emt 0:01:21]} 49. Qg3 {[%emt 0:09:33]} Qf7 {[%emt 0:06:56]} 50. Qe1 {[%emt 0:03:39]} Rf8 {[%emt 0:03:36]} 51. Rd1 {[%emt 0:02:32]} Qg6 {[%emt 0:03:26]} 52. b3 {[%emt 0:01:33]} Nb6 {[%emt 0:06:03]} 53. c4 {[%emt 0:01:20]} bxc4 {[%emt 0:01:59]} 54. Qb4 {[%emt 0:01:55]} Rb8 {[%emt 0:01:41]} 55. Be3 {[%emt 0:00:53]} Rcb7 {[%emt 0:00:44]} 56. bxc4 {[%emt 0:02:29]} Nxc4 {[%emt 0:00:41]} 57. Qc5 {[%emt 0:00:05]} Rb2 {[%emt 0:03:44]} 58. Rf2 {[%emt 0:00:18]} h6 {[%emt 0:00:34]} 59. f5 {[%emt 0:00:31]} exf5 {[%emt 0:00:45]} 60. Rxd5 {[%emt 0:00:10]} Nxe3 {[%emt 0:01:42]} 61. Qxe3 {[%emt 0:00:58]} R8b3 {[%emt 0:03:08]} 62. Qf4 {[%emt 0:00:05]} Rxf2 {[%emt 0:00:52]} 63. Qxf2 {[%emt 0:00:04]} Qe6 {[%emt 0:00:35]} 64. Qc5 {[%emt 0:00:49]} Rb5 {[%emt 0:01:43]} 65. Qf8+ {[%emt 0:01:15]} Kh7 {[%emt 0:00:23]} 66. Rxb5 {[%emt 0:00:19]} axb5 {[%emt 0:00:06]} 67. Qd6 {[%emt 0:00:42]} Qg6 {[%emt 0:01:33]} 68. e6 {[%emt 0:00:26]} f4 {[%emt 0:00:41]} 69. Qxf4 {[%emt 0:01:37]} Qxe6 {[%emt 0:00:07]} 70. Qe3 {[%emt 0:00:11]} Qf5 {[%emt 0:01:23]} 71. Kg3 {[%emt 0:00:43]} Qe5+ {[%emt 0:00:27]} 72. Kf2 {[%emt 0:00:24]} Qd5 {[%emt 0:00:25]} 73. Kg3 {[%emt 0:00:20]} Kg6 {[%emt 0:00:27]} 74. h4 {[%emt 0:00:37]} Qe5+ {[%emt 0:00:42]} 75. Kf2 {[%emt 0:00:28]} Kf5 {[%emt 0:00:32]} 76. Qh3+ {[%emt 0:00:26]} Kf6 {[%emt 0:00:01]} 77. Qe3 {[%emt 0:00:07]} Qf5+ {[%emt 0:00:49]} 78. Ke1 {[%emt 0:00:28]} h5 {[%emt 0:01:05]} 79. Qb6+ {[%emt 0:00:22]} Kf7 {[%emt 0:00:26]} 80. Qa7+ {[%emt 0:00:48]} Kg6 {[%emt 0:00:07]} 81. Qb6+ {[%emt 0:00:38]} Kh7 {[%emt 0:00:01]} 82. Qe3 {[%emt 0:00:14]} Qe5 {[%emt 0:00:25]} 83. Kf2 {[%emt 0:00:26]} Qe7 {[%emt 0:00:15]} 84. Kg3 {[%emt 0:00:27]} Qe6 {[%emt 0:00:22]} 85. Kf2 {[%emt 0:00:42]} Qg4 {[%emt 0:00:13]} 86. g3 {[%emt 0:00:09]} Qf5+ {[%emt 0:00:18]} 87. Ke2 {[%emt 0:00:11]} Qe5 {[%emt 0:00:19]} 88. Kf2 {[%emt 0:00:30]} Kg6 {[%emt 0:00:20]} 89. Ke2 {[%emt 0:00:22]} Kf5 {[%emt 0:00:27]} 90. Qg5+ {[%emt 0:00:19]} Ke6 {[%emt 0:00:06]} 91. Qe3 {[%emt 0:00:30]} Kd5 {[%emt 0:00:17]} 92. Qb3+ {[%emt 0:00:16]} Kc5 {[%emt 0:00:28]} 93. Qb4+ {[%emt 0:01:31]} Kc6 {[%emt 0:00:06]} 94. a4 {[%emt 0:00:29]} bxa4 {[%emt 0:00:29]} 95. Qxa4+ {[%emt 0:00:05]} Kd6 {[%emt 0:00:14]} 96. Qa6+ {[%emt 0:00:47]} Ke7 {[%emt 0:00:14]} 97. Qa7+ {[%emt 0:00:09]} Kf6 {[%emt 0:00:08]} 98. Qe3 {[%emt 0:00:14]} Qb2+ {[%emt 0:00:45]} 99. Ke1 {[%emt 0:00:51]} Qe5 {[%emt 0:01:29]} 100. Kf2 {[%emt 0:00:20]} Qf5+ {[%emt 0:00:19]} 101. Ke2 {[%emt 0:00:21]} Qg4+ {[%emt 0:00:21]} 102. Kf2 {[%emt 0:00:09]} Kg6 {[%emt 0:00:59]} 103. Qb6+ {[%emt 0:00:20]} Kh7 {[%emt 0:00:06]} 104. Qe3 {[%emt 0:00:06]} Qe6 {[%emt 0:01:52]} 105. Ke2 {[%emt 0:00:21]} Qc4+ {[%emt 0:00:13]} 106. Kf2 {[%emt 0:00:31]} Qc2+ {[%emt 0:00:06]} 107. Ke1 {[%emt 0:00:23]} Qg2 {[%emt 0:00:20]} 108. Kd1 {[%emt 0:00:47]} Qf1+ {[%emt 0:01:03]} 109. Kd2 {[%emt 0:00:10]} Qf5 {[%emt 0:01:28]} 110. Ke2 {[%emt 0:00:16]} g6 {[%emt 0:00:10]} 111. Ke1 {[%emt 0:00:42]} Qe6 {[%emt 0:00:39]} 112. Ke2 {[%emt 0:00:29]} Kg8 {[%emt 0:00:05]} 113. Kf2 {[%emt 0:00:24]} Kf7 {[%emt 0:00:07]} 114. Ke2 {[%emt 0:00:57]} Ke8 {[%emt 0:00:05]} 115. Kf2 {[%emt 0:00:11]} Kd7 {[%emt 0:00:05]} 116. Qd4+ {[%emt 0:00:50]} Kc6 {[%emt 0:00:18]} 117. Ke3 {[%emt 0:01:14]} Qb3+ {[%emt 0:01:21]} 118. Kxe4 {[%emt 0:00:09]} Qxg3 {[%emt 0:00:09]} 119. Qd5+ {[%emt 0:00:16]} Kb6 {[%emt 0:00:19]} 120. Qe6+ {[%emt 0:00:19]} Kb7 {[%emt 0:00:23]} 121. Qe7+ {[%emt 0:00:20]} Kc6 {[%emt 0:00:34]} 122. Qe8+ {[%emt 0:00:17]} Kb7 {[%emt 0:00:35]} 123. Qe7+ {[%emt 0:00:07]} Kc6 {[%emt 0:00:05]} 1/2-1/2

[Event "4NCL 2nd Div 2023-24"]
[Site "Daventry"]
[Date "2024.05.04"]
[Round "9.23"]
[White "Duggan, John E"]
[Black "Blake, J Morgan"]
[Result "0-1"]
[ECO "D12"]
[WhiteElo "2044"]
[BlackElo "2018"]
[Annotator "NA RC"]
[PlyCount "100"]
[EventDate "2023.11.11"]
[EventType "team-tourn"]
[EventCountry "ENG"]
[SourceTitle "playchess.com"]
[Source "ChessBase"]
[SourceQuality "1"]
[TimeControl "40/6000+30:3000+30"]

1. d4 {[%emt 0:00:04]} Nf6 {[%emt 0:00:25]} 2. Nf3 {[%emt 0:00:06]} d5 {[%emt 0:00:07]} 3. c4 {[%emt 0:00:49]} c6 {[%emt 0:00:11]} 4. e3 {[%emt 0:00:13]} Bf5 {[%emt 0:00:23]} 5. Nc3 {[%emt 0:00:48]} e6 {[%emt 0:00:13]} 6. Bd3 {[%emt 0:00:49]} Bg6 {[%emt 0:00:33]} 7. O-O {[%emt 0:07:28]} Nbd7 {[%emt 0:01:56]} 8. Qe2 {[%emt 0:00:27]} Bb4 {[%emt 0:03:41]} 9. Nd2 {[%emt 0:07:34]} dxc4 {[%emt 0:08:43]} 10. Nxc4 {[%emt 0:01:01]} b5 {[%emt 0:01:44]} 11. Nd2 {[%emt 0:04:14]} O-O {[%emt 0:07:24]} 12. Bxg6 {[%emt 0:07:08]} hxg6 {[%emt 0:00:11]} 13. a3 {[%emt 0:01:18]} Be7 {[%emt 0:05:06]} 14. Nf3 {[%emt 0:05:39]} Qc7 {[%emt 0:10:57]} 15. Bd2 {[%emt 0:05:30]} Nb6 {[%emt 0:10:46]} 16. Rfc1 {[%emt 0:08:34]} Qb7 {[%emt 0:06:03]} 17. Ne5 {[%emt 0:06:12]} Rac8 {[%emt 0:06:00]} 18. Qf3 {[%emt 0:10:04]} Nbd5 {[%emt 0:05:52]} 19. b4 {[%emt 0:06:55]} Nxc3 {[%emt 0:05:22]} 20. Bxc3 {[%emt 0:02:59]} Nd5 {[%emt 0:00:41]} 21. Be1 {[%emt 0:06:31]} Bd6 {[%emt 0:00:48]} 22. Nd3 {[%emt 0:04:46]} Nb6 {[%emt 0:00:46]} 23. Nb2 {[%emt 0:00:19]} e5 {[%emt 0:03:56]} 24. dxe5 {[%emt 0:03:50]} Bxe5 {[%emt 0:00:02]} 25. Bc3 {[%emt 0:00:10]} Rfe8 {[%emt 0:03:54]} 26. Rc2 {[%emt 0:04:18]} Qb8 {[%emt 0:05:28]} 27. Bxe5 {[%emt 0:01:35]} Qxe5 {[%emt 0:00:09]} 28. Rac1 {[%emt 0:00:07]} Red8 {[%emt 0:03:14]} 29. g3 {[%emt 0:02:33]} Rd6 {[%emt 0:02:13]} 30. Qe2 {[%emt 0:00:08]} Qe4 {[%emt 0:03:59]} 31. f3 {[%emt 0:01:30]} Qe6 {[%emt 0:00:47]} 32. e4 {[%emt 0:01:38]} g5 {[%emt 0:02:14]} 33. Qe3 {[%emt 0:02:39]} Qe5 {[%emt 0:04:22]} 34. Nd3 {[%emt 0:01:42]} Qe7 {[%emt 0:00:13]} 35. Nb2 {[%emt 0:00:53]} Qe5 {[%emt 0:00:15]} 36. Qc5 {[%emt 0:02:06]} Qe7 {[%emt 0:06:52]} 37. Kg2 {[%emt 0:04:18]} g4 {[%emt 0:01:17]} 38. e5 {[%emt 0:01:01]} gxf3+ {[%emt 0:00:29]} 39. Kxf3 {[%emt 0:00:06]} Nd7 {[%emt 0:01:25]} 40. Qxd6 {[%emt 0:00:14]} Nxe5+ {[%emt 0:00:08]} 41. Qxe5 {[%emt 0:50:14]} Qxe5 {[%emt 0:50:03]} 42. Nd3 {[%emt 0:00:45]} Qd5+ {[%emt 0:00:34]} 43. Ke3 {[%emt 0:00:21]} Re8+ {[%emt 0:00:12]} 44. Kd2 {[%emt 0:00:05]} Rd8 {[%emt 0:00:42]} 45. Rc3 {[%emt 0:00:02]} Qg2+ {[%emt 0:00:55]} 46. Ke3 {[%emt 0:00:29]} Re8+ {[%emt 0:00:28]} 47. Kf4 {[%emt 0:00:25]} Qe4+ {[%emt 0:00:50]} 48. Kg5 {[%emt 0:00:12]} f6+ {[%emt 0:01:15]} 49. Kh5 {[%emt 0:00:16]} Kh7 {[%emt 0:00:39]} 50. Nf4 {[%emt 0:00:17]} Qf5+ {[%emt 0:00:23]} 0-1

[Event "4NCL 2nd Div 2023-24"]
[Site "Daventry"]
[Date "2024.05.04"]
[Round "9.24"]
[White "Graham, Cassie M"]
[Black "Jaufarally, Nadia"]
[Result "1/2-1/2"]
[ECO "A05"]
[WhiteElo "1974"]
[BlackElo "1914"]
[Annotator "NA RC"]
[PlyCount "82"]
[EventDate "2023.11.11"]
[EventType "team-tourn"]
[EventCountry "ENG"]
[SourceTitle "playchess.com"]
[Source "ChessBase"]
[SourceQuality "1"]
[TimeControl "40/6000+30:3000+30"]

1. e4 {[%emt 0:00:03]} c5 {[%emt 0:00:06]} 2. Nf3 {[%emt 0:00:05]} d6 {[%emt 0:00:08]} 3. d3 {[%emt 0:00:05]} Nc6 {[%emt 0:00:13]} 4. g3 {[%emt 0:00:03]} g6 {[%emt 0:00:08]} 5. Bg2 {[%emt 0:00:05]} Bg7 {[%emt 0:00:05]} 6. O-O {[%emt 0:00:48]} Nf6 {[%emt 0:00:21]} 7. Re1 {[%emt 0:02:04]} O-O {[%emt 0:00:50]} 8. Nbd2 {[%emt 0:01:02]} Rb8 {[%emt 0:01:11]} 9. a4 {[%emt 0:06:23]} a6 {[%emt 0:00:49]} 10. h3 {[%emt 0:01:56]} b5 {[%emt 0:00:59]} 11. axb5 {[%emt 0:11:10]} axb5 {[%emt 0:00:12]} 12. c3 {[%emt 0:07:04]} Nd7 {[%emt 0:13:38]} 13. Nf1 {[%emt 0:02:05]} b4 {[%emt 0:15:05]} 14. c4 {[%emt 0:00:38]} Bb7 {[%emt 0:01:33]} 15. Ne3 {[%emt 0:13:23]} Ra8 {[%emt 0:05:20]} 16. Rxa8 {[%emt 0:00:50]} Qxa8 {[%emt 0:00:11]} 17. Nd5 {[%emt 0:01:37]} e6 {[%emt 0:05:43]} 18. Ne3 {[%emt 0:06:44]} Qa2 {[%emt 0:13:45]} 19. Qe2 {[%emt 0:07:34]} Ra8 {[%emt 0:04:54]} 20. Ng4 {[%emt 0:13:32]} Qb3 {[%emt 0:21:46]} 21. Nd2 {[%emt 0:24:46]} Qa2 {[%emt 0:05:20]} 22. Nf3 {[%emt 0:00:03]} Qb3 {[%emt 0:01:50]} 23. Nd2 {[%emt 0:00:05]} Qc2 {[%emt 0:02:46]} 24. Ne3 {[%emt 0:00:18]} Qa4 {[%emt 0:00:07]} 25. Nf3 {[%emt 0:00:56]} Rf8 {[%emt 0:06:08]} 26. h4 {[%emt 0:02:06]} Na5 {[%emt 0:04:11]} 27. Nd1 {[%emt 0:02:35]} Nb3 {[%emt 0:00:43]} 28. Bf4 {[%emt 0:00:08]} e5 {[%emt 0:00:57]} 29. Be3 {[%emt 0:00:36]} Nd4 {[%emt 0:00:38]} 30. Qd2 {[%emt 0:03:19]} Qc2 {[%emt 0:00:38]} 31. Nxd4 {[%emt 0:01:17]} Qxd2 {[%emt 0:00:13]} 32. Bxd2 {[%emt 0:00:06]} exd4 {[%emt 0:01:17]} 33. f4 {[%emt 0:00:53]} Ra8 {[%emt 0:01:22]} 34. Nf2 {[%emt 0:00:42]} Ra2 {[%emt 0:00:19]} 35. Rb1 {[%emt 0:00:32]} Bc6 {[%emt 0:00:11]} 36. Be1 {[%emt 0:01:17]} Nb8 {[%emt 0:03:22]} 37. Bf3 {[%emt 0:00:52]} Bd7 {[%emt 0:00:48]} 38. Bd1 {[%emt 0:00:22]} Nc6 {[%emt 0:00:29]} 39. Bb3 {[%emt 0:00:35]} Ra8 {[%emt 0:00:20]} 40. Bd1 {[%emt 0:00:08]} Bh6 {[%emt 0:01:16]} 41. Kg2 {[%emt 0:08:50]} f6 {[%emt 0:07:42]} 1/2-1/2

[Event "4NCL 2nd Div 2023-24"]
[Site "Daventry"]
[Date "2024.05.04"]
[Round "9.25"]
[White "Lewis, Andrew P"]
[Black "Baker, Chris W"]
[Result "1-0"]
[ECO "E94"]
[WhiteElo "2252"]
[BlackElo "2218"]
[Annotator "TA"]
[PlyCount "91"]
[EventDate "2023.11.11"]
[EventType "team-tourn"]
[EventCountry "ENG"]
[SourceTitle "playchess.com"]
[Source "ChessBase"]
[SourceQuality "1"]
[TimeControl "40/6000+30:3000+30"]

{[%evp 19,91,64,68,26,51,58,89,54,68,68,113,45,70,64,120,119,128,128,163,145,145,112,110,32,33,6,65,-8,0,0,39,50,46,49,124,91,208,150,168,92,216,211,215,222,224,223,221,220,225,227,362,361,326,250,313,287,312,307,339,342,312,322,462,438,680,316,315,308,310,305,354,362,416,424]} 1. d4 {[%emt 0:00:21]} d6 {[%emt 0:00:06]} 2. c4 {[%emt 0:01:15]} e5 {[%emt 0:00:30]} 3. Nf3 {[%emt 0:03:16]} Nd7 {[%emt 0:03:20]} 4. Nc3 {[%emt 0:01:46]} Ngf6 {[%emt 0:01:47]} 5. e4 {[%emt 0:00:17]} g6 {[%emt 0:01:42]} 6. Be2 {[%emt 0:01:22]} Bg7 {[%emt 0:00:45]} 7. Be3 {[%emt 0:03:44]} exd4 {[%emt 0:04:11]} 8. Nxd4 {[%emt 0:01:32]} O-O {[%emt 0:01:13]} 9. O-O {[%emt 0:05:14]} Re8 {[%emt 0:01:53]} 10. f3 {[%emt 0:03:30]} c6 {[%emt 0:02:18][%cal Od6d5]} 11. Bf2 {[%emt 0:06:31] White is more active.} Nh5 {[%emt 0:12:03]} 12. Qd2 {[%emt 0:05:32] Against Nf4} Qf6 {[%emt 0:12:11]} 13. g3 {[%emt 0:09:49][%cal Bg2g3,Bg3g4][%mdl 32] Wards off Nf4. White is better.} Ne5 {[%emt 0:05:41]} 14. Be3 {[%emt 0:03:25] [#] Black must now prevent g4.} Bh3 {[%emt 0:02:16]} 15. Rf2 {[%emt 0:01:05]} (15. Bg5 $2 Nxc4 16. Bxc4 Qxd4+ 17. Qxd4 Bxd4+ 18. Rf2 Be6 $19 (18... Bxf2+ $2 19. Kxf2 Be6 20. Be2 $19)) (15. g4 $16) 15... Qe7 {[%emt 0:12:29]} 16. Rd1 {[%emt 0:07:51]} Rad8 {[%emt 0:18:34]} (16... f5 $14) 17. g4 $16 {[%emt 0:04:21]} Nf6 {[%emt 0:01:01] [#]} 18. Bg5 $1 {[%emt 0:00:35]} Ned7 {[%emt 0:07:07]} 19. Qf4 {[%emt 0:08:00]} Qe5 {[%emt 0:01:42]} 20. Qe3 {[%emt 0:01:34] Strongly threatening f4.} Qc5 {[%emt 0:01:40]} 21. Nc2 {[%emt 0:14:17]} (21. Bh6 $16) 21... Qxe3 {[%emt 0:02:50]} 22. Bxe3 {[%emt 0:04:48]} Nb6 {[%emt 0:02:22]} (22... Nc5 $11) 23. Bg5 {[%emt 0:09:44]} (23. a4 $14) 23... h6 $1 $11 {[%emt 0:01:09]} 24. Bh4 {[%emt 0:00:45]} d5 {[%emt 0:01:10]} 25. cxd5 {[%emt 0:01:07]} cxd5 {[%emt 0:02:29]} 26. Bb5 $36 {[%emt 0:01:02][%mdl 2048] Bxf6 would now be deadly. Black is under pressure.} Re6 {[%emt 0:00:34]} (26... g5 $1 $14) 27. Rfd2 {[%emt 0:01:33][%cal Re4d5]} g5 {[%emt 0:01:19]} (27... a6 $16 28. exd5 Re5) 28. Bg3 {[%emt 0:02:53][%cal Re4d5]} a6 {[%emt 0:02:31]} 29. Nd4 {[%emt 0:03:44]} ({White should try} 29. Nxd5 $18 Nfxd5 30. exd5 Rxd5 31. Rxd5 Nxd5 32. Bc4 (32. Rxd5 axb5 33. Kf2 Bxb2 $11)) 29... dxe4 {[%emt 0:01:58] Loses the game.} (29... axb5 $16 {keeps fighting.} 30. Nxe6 fxe6) 30. Nxe6 $18 {[%emt 0:01:05]} Rxd2 {[%emt 0:00:08]} 31. Rxd2 {[%emt 0:00:06]} fxe6 {[%emt 0:00:14]} 32. Be2 {[%emt 0:02:00]} exf3 {[%emt 0:00:42]} 33. Bxf3 {[%emt 0:00:12]} Bxg4 {[%emt 0:01:50]} 34. Bxb7 {[%emt 0:00:46]} Nc4 {[%emt 0:01:56]} (34... a5 {was necessary.} 35. Bc7 Nc4) 35. Rd8+ {[%emt 0:01:14]} Kf7 {[%emt 0:00:07]} 36. b3 {[%emt 0:00:41]} Ne3 {[%emt 0:00:39]} 37. Bf2 {[%emt 0:00:46]} ({Resist} 37. Bxa6 Bf5 38. Be5 Kg6 $18) 37... Nf5 {[%emt 0:04:33]} 38. Bxa6 {[%emt 0:00:25]} Ke7 {[%emt 0:00:00]} 39. Ra8 {[%emt 0:00:34]} Nd7 {[%emt 0:00:00]} 40. Be2 {[%emt 0:01:02]} Bh3 {[%emt 0:00:00]} (40... Bxc3 $142 41. Bxg4 Nd6) 41. Ne4 {[%emt 0:50:43]} Nd4 {[%emt 0:50:57]} (41... Bd4 $142 42. b4 Bxf2+ 43. Kxf2 Nh4) 42. Bd1 {[%emt 0:00:00]} (42. Bh5 $142 {[%csl Gh5][%cal Ra8e8]} Nb6 43. Ra7+ Nd7 44. Nc5) 42... Bf5 {[%emt 0:00:00]} 43. Ng3 {[%emt 0:00:00]} Bd3 {[%emt 0:00:00]} 44. Ra4 {[%emt 0:00:00]} Nb5 {[%emt 0:00:00]} 45. Be2 {[%emt 0:00:00]} Ne5 {[%emt 0:00:00]} 46. Ra5 {[%emt 0:00:00] Weighted Error Value: White=0.35/Black=0.40.  Mistake:       	White=5     	Black=8      Inaccurate:     	White=2     	Black=3      OK:         	White=16    	Black=9      Best:        	White=2     	Black=3      Strong:       	White=1     	Black=1} 1-0

[Event "4NCL 2nd Div 2023-24"]
[Site "Daventry"]
[Date "2024.05.04"]
[Round "9.26"]
[White "Bowcott-Terry, Finlay"]
[Black "Kanellopoulos, Panayotis"]
[Result "1/2-1/2"]
[ECO "B28"]
[WhiteElo "2097"]
[BlackElo "2243"]
[Annotator "RC"]
[PlyCount "106"]
[EventDate "2023.11.11"]
[EventType "team-tourn"]
[EventCountry "ENG"]
[SourceTitle "playchess.com"]
[Source "ChessBase"]
[SourceQuality "1"]
[TimeControl "40/6000+30:3000+30"]

1. e4 {[%emt 0:00:01]} c5 {[%emt 0:00:44]} 2. Nf3 {[%emt 0:00:04]} a6 {[%emt 0:00:28]} 3. g3 {[%emt 0:12:41]} d6 {[%emt 0:02:34]} 4. Bg2 {[%emt 0:01:08]} Nf6 {[%emt 0:01:07]} 5. d3 {[%emt 0:00:01]} g6 {[%emt 0:03:19]} 6. O-O {[%emt 0:00:04]} Bg7 {[%emt 0:00:10]} 7. Nbd2 {[%emt 0:01:38]} O-O {[%emt 0:01:18]} 8. h3 {[%emt 0:00:13]} Nc6 {[%emt 0:03:25]} 9. Re1 {[%emt 0:01:17]} Nd7 {[%emt 0:06:37]} 10. Nf1 {[%emt 0:02:18]} b5 {[%emt 0:00:34]} 11. N3h2 {[%emt 0:00:19]} Bb7 {[%emt 0:03:06]} 12. f4 {[%emt 0:00:08]} b4 {[%emt 0:02:01]} 13. g4 {[%emt 0:01:56]} Nd4 {[%emt 0:06:20]} 14. Ne3 {[%emt 0:05:38]} e6 {[%emt 0:19:32]} 15. Nf3 {[%emt 0:01:08]} d5 {[%emt 0:07:48]} 16. e5 {[%emt 0:27:51]} Nxf3+ {[%emt 0:02:50]} 17. Bxf3 {[%emt 0:01:55]} f6 {[%emt 0:07:24]} 18. Nxd5 {[%emt 0:04:18]} exd5 {[%emt 0:03:04]} 19. e6 {[%emt 0:00:36]} Ne5 {[%emt 0:00:48]} 20. fxe5 {[%emt 0:03:23]} fxe5 {[%emt 0:00:12]} 21. Be3 {[%emt 0:01:59]} Qe7 {[%emt 0:04:23]} 22. Bg2 {[%emt 0:02:20]} Rac8 {[%emt 0:05:38]} 23. c4 {[%emt 0:01:34]} bxc3 {[%emt 0:02:29]} 24. bxc3 {[%emt 0:00:02]} Qxe6 {[%emt 0:01:05]} 25. c4 {[%emt 0:04:39]} e4 {[%emt 0:06:41]} 26. Rb1 {[%emt 0:00:20]} Ba8 {[%emt 0:03:17]} 27. cxd5 {[%emt 0:00:36]} Bxd5 {[%emt 0:00:06]} 28. dxe4 {[%emt 0:00:18]} Bxa2 {[%emt 0:02:36]} 29. Rb7 {[%emt 0:01:06]} Rf7 {[%emt 0:04:11]} 30. Rxf7 {[%emt 0:01:05]} Qxf7 {[%emt 0:00:02]} 31. Qa4 {[%emt 0:00:31]} Bc4 {[%emt 0:01:35]} 32. Rc1 {[%emt 0:01:50]} Bb5 {[%emt 0:00:17]} 33. Qd1 {[%emt 0:00:02]} c4 {[%emt 0:01:31]} 34. e5 {[%emt 0:00:48]} Qe7 {[%emt 0:02:40]} 35. e6 {[%emt 0:00:53]} Rd8 {[%emt 0:01:46]} 36. Bd5 {[%emt 0:01:37]} Bc6 {[%emt 0:04:44]} 37. Bxc6 {[%emt 0:00:01]} Rxd1+ {[%emt 0:00:05]} 38. Rxd1 {[%emt 0:00:01]} Qc7 {[%emt 0:01:33]} 39. Bg2 {[%emt 0:00:01]} Bf6 {[%emt 0:00:57]} 40. g5 {[%emt 0:01:10]} Be7 {[%emt 0:00:36]} 41. Rd7 {[%emt 0:55:54]} Qe5 {[%emt 0:06:47]} 42. Bd4 {[%emt 0:00:00]} Bc5 {[%emt 0:17:56]} 43. Rd8+ {[%emt 0:00:00]} Kg7 {[%emt 0:00:09]} 44. Rd7+ {[%emt 0:00:00]} Kf8 {[%emt 0:02:32]} 45. e7+ {[%emt 0:00:00]} Ke8 {[%emt 0:04:06]} 46. Bc6 {[%emt 0:00:00]} Qxg5+ {[%emt 0:00:07]} 47. Kh1 {[%emt 0:00:00]} Qc1+ {[%emt 0:02:55]} 48. Kg2 {[%emt 0:00:00]} Qd2+ {[%emt 0:15:43]} 49. Kg1 {[%emt 0:00:00]} Qe1+ {[%emt 0:00:36]} 50. Kg2 {[%emt 0:00:00]} Qe2+ {[%emt 0:00:53]} 51. Kg1 {[%emt 0:00:00]} Qe1+ {[%emt 0:00:42]} 52. Kg2 {[%emt 0:00:00]} Qe2+ {[%emt 0:00:23]} 53. Kg1 {[%emt 0:00:00]} Qe1+ {[%emt 0:00:13]} 1/2-1/2